bitfinex-derivatives/quotes_SOLF0:USTF0_20260222
["timestamp","ask_amount","ask_price","bid_price","bid_amount"]
[1771750608026,3.94264031,84.955,84.921,3.84263972]
[1771750608321,9.01559702,84.954,84.921,3.84263972]
[1771750608526,9.01559702,84.953,84.921,3.84263972]
[1771750608724,9.01559702,84.952,84.921,3.84263972]
[1771750608928,3.94264031,84.955,84.921,3.84263972]
[1771750609127,9.01560088,84.954,84.921,3.84263972]
[1771750609327,9.01560088,84.953,84.921,3.84263972]
[1771750609528,9.01560088,84.952,84.921,3.84263972]
[1771750609727,3.94264031,84.955,84.921,3.84263972]
[1771750609932,9.01585426,84.954,84.921,3.84263972]
[1771750610132,9.01585426,84.953,84.921,3.84263972]
[1771750610331,9.01585426,84.952,84.921,3.84263972]
[1771750610631,3.94264031,84.955,84.921,3.84263972]
[1771750610832,9.01593658,84.954,84.921,3.84263972]
[1771750611133,9.01593658,84.953,84.921,3.84263972]
[1771750611431,9.01593658,84.952,84.921,3.84263972]
[1771750611732,3.94264031,84.955,84.921,3.84263972]
[1771750611932,9.01602789,84.954,84.921,3.84263972]
[1771750612232,3.94264031,84.955,84.921,3.84263972]
[1771750612432,9.01613273,84.954,84.921,3.84263972]
[1771750612634,3.94264031,84.955,84.921,3.84263972]
[1771750612933,9.01613744,84.954,84.921,3.84263972]
[1771750613132,3.94264031,84.955,84.921,3.84263972]
[1771750613333,9.01625845,84.954,84.921,3.84263972]
[1771750613535,3.94264031,84.955,84.921,3.84263972]
[1771750613833,9.01625845,84.954,84.921,3.84263972]
[1771750614133,3.94264031,84.955,84.921,3.84263972]
[1771750614329,9.01639478,84.954,84.921,3.84263972]
[1771750614525,3.94264031,84.955,84.921,3.84263972]
[1771750614725,9.01639478,84.954,84.921,3.84263972]
[1771750614925,3.94264031,84.955,84.921,3.84263972]
[1771750615130,9.01639863,84.954,84.921,3.84263972]
[1771750615335,3.94264031,84.955,84.921,3.84263972]
[1771750615636,9.01655232,84.954,84.921,3.84263972]
[1771750615834,3.94264031,84.955,84.921,3.84263972]
[1771750616028,9.01655232,84.954,84.921,3.84263972]
[1771750616333,3.94264031,84.954,84.921,3.84263972]
[1771750618136,9.01715294,84.953,84.921,3.84263972]
[1771750618336,3.94264031,84.954,84.921,3.84263972]
[1771750618537,9.01715294,84.953,84.921,3.84263972]
[1771750618737,3.94264031,84.954,84.921,3.84263972]
[1771750618936,9.0171568,84.953,84.921,3.84263972]
[1771750619137,3.94264031,84.954,84.921,3.84263972]
[1771750619338,9.01741376,84.953,84.921,3.84263972]
[1771750619538,3.94264031,84.954,84.921,3.84263972]
[1771750619739,12.96005407,84.953,84.921,3.84263972]
[1771750620038,3.94264031,84.953,84.921,3.84263972]
[1771750621641,9.01800114,84.952,84.921,3.84263972]
[1771750621939,3.94264031,84.953,84.921,3.84263972]
[1771750622139,9.01800112,84.952,84.921,3.84263972]
[1771750622438,3.94264031,84.953,84.921,3.84263972]
[1771750622639,9.01840374,84.952,84.921,3.84263972]
[1771750622845,3.94264031,84.953,84.921,3.84263972]
[1771750623047,9.01840374,84.952,84.921,3.84263972]
[1771750623247,3.94264031,84.953,84.921,3.84263972]
[1771750623442,9.0189019,84.952,84.921,3.84263972]
[1771750623643,3.94264031,84.953,84.921,3.84263972]
[1771750623946,9.02022127,84.952,84.921,3.84263972]
[1771750624246,9.0208753,84.951,84.921,3.84263972]
[1771750624544,3.94264031,84.953,84.921,3.84263972]
[1771750624744,9.02089863,84.952,84.921,3.84263972]
[1771750625044,9.02089863,84.951,84.921,3.84263972]
[1771750625245,3.94264031,84.953,84.921,3.84263972]
[1771750625447,9.02247066,84.952,84.921,3.84263972]
[1771750625646,9.02247066,84.951,84.921,3.84263972]
[1771750625950,3.94264031,84.953,84.921,3.84263972]
[1771750626145,9.02247674,84.952,84.921,3.84263972]
[1771750626345,9.02247674,84.951,84.921,3.84263972]
[1771750626646,3.94264031,84.953,84.921,3.84263972]
[1771750626945,9.02248282,84.952,84.921,3.84263972]
[1771750627244,9.02248282,84.951,84.921,3.84263972]
[1771750627445,3.94264031,84.953,84.921,3.84263972]
[1771750627745,9.02248552,84.952,84.921,3.84263972]
[1771750627947,9.02248552,84.951,84.921,3.84263972]
[1771750628145,3.94264031,84.953,84.921,3.84263972]
[1771750628445,9.02248715,84.952,84.921,3.84263972]
[1771750628642,9.02248715,84.951,84.921,3.84263972]
[1771750628843,3.94264031,84.953,84.921,3.84263972]
[1771750629039,9.02248399,84.952,84.921,3.84263972]
[1771750629243,9.02248399,84.951,84.921,3.84263972]
[1771750629448,3.94264031,84.953,84.921,3.84263972]
[1771750629649,9.02248721,84.952,84.921,3.84263972]
[1771750629847,9.02248721,84.951,84.921,3.84263972]
[1771750630048,3.94264031,84.953,84.921,3.84263972]
[1771750630251,9.02248861,84.952,84.921,3.84263972]
[1771750630450,9.02248861,84.951,84.921,3.84263972]
[1771750630652,3.94264031,84.953,84.921,3.84263972]
[1771750630851,9.02249347,84.952,84.921,3.84263972]
[1771750631149,9.02249347,84.951,84.921,3.84263972]
[1771750631349,3.94264031,84.953,84.921,3.84263972]
[1771750631549,9.02250069,84.952,84.921,3.84263972]
[1771750631751,3.94264031,84.953,84.921,3.84263972]
[1771750641759,9.02235096,84.952,84.921,3.84263972]
[1771750641959,3.94264031,84.953,84.921,3.84263972]
[1771750642251,9.02235096,84.952,84.921,3.84263972]
[1771750642452,3.94264031,84.953,84.921,3.84263972]
[1771750642654,9.02235087,84.952,84.921,3.84263972]
[1771750642853,3.94264031,84.953,84.921,3.84263972]
[1771750643050,9.02235087,84.952,84.921,3.84263972]
[1771750643255,3.94264031,84.953,84.921,3.84263972]
[1771750643452,9.02235079,84.952,84.921,3.84263972]
[1771750643755,3.94264031,84.953,84.921,3.84263972]
[1771750643955,9.02139393,84.952,84.921,3.84263972]
[1771750644155,3.94264031,84.953,84.921,3.84263972]
[1771750644355,9.02137965,84.952,84.921,3.84263972]
[1771750644559,3.94264031,84.953,84.921,3.84263972]
[1771750644759,9.02139384,84.952,84.921,3.84263972]
[1771750644959,3.94264031,84.953,84.921,3.84263972]
[1771750645161,9.02137841,84.952,84.921,3.84263972]
[1771750645359,3.94264031,84.953,84.921,3.84263972]
[1771750645659,9.02137828,84.952,84.921,3.84263972]
[1771750645859,3.94264031,84.953,84.921,3.84263972]
[1771750646059,9.02137404,84.952,84.921,3.84263972]
[1771750646359,3.94264031,84.953,84.921,3.84263972]
[1771750646553,9.02137336,84.952,84.921,3.84263972]
[1771750646750,3.94264031,84.953,84.921,3.84263972]
[1771750646950,9.02137336,84.952,84.921,3.84263972]
[1771750647157,3.94264031,84.953,84.921,3.84263972]
[1771750647361,9.02135867,84.952,84.921,3.84263972]
[1771750647560,3.94264031,84.953,84.921,3.84263972]
[1771750647862,9.02137237,84.952,84.921,3.84263972]
[1771750648160,3.94264031,84.953,84.921,3.84263972]
[1771750648361,9.02135712,84.952,84.921,3.84263972]
[1771750648552,3.94264031,84.953,84.921,3.84263972]
[1771750648756,9.02137085,84.952,84.921,3.84263972]
[1771750648959,3.94264031,84.953,84.921,3.84263972]
[1771750649258,9.0213747,84.952,84.921,3.84263972]
[1771750649459,3.94264031,84.953,84.921,3.84263972]
[1771750649758,9.02137486,84.952,84.921,3.84263972]
[1771750649958,3.94264031,84.953,84.921,3.84263972]
[1771750650258,9.02137486,84.952,84.921,3.84263972]
[1771750650457,3.94264031,84.953,84.921,3.84263972]
[1771750650658,9.02137432,84.952,84.921,3.84263972]
[1771750650861,3.94264031,84.953,84.921,3.84263972]
[1771750651061,9.02137432,84.952,84.921,3.84263972]
[1771750651262,3.94264031,84.953,84.921,3.84263972]
[1771750651461,9.02137457,84.952,84.921,3.84263972]
[1771750651662,3.94264031,84.953,84.921,3.84263972]
[1771750651858,9.02137457,84.952,84.921,3.84263972]
[1771750652067,3.94264031,84.953,84.921,3.84263972]
[1771750652266,9.02136105,84.952,84.921,3.84263972]
[1771750652465,3.94264031,84.953,84.921,3.84263972]
[1771750652766,9.02137482,84.952,84.921,3.84263972]
[1771750652959,3.94264031,84.953,84.921,3.84263972]
[1771750653155,9.02137482,84.952,84.921,3.84263972]
[1771750653366,3.94264031,84.953,84.921,3.84263972]
[1771750653665,9.02828944,84.952,84.921,3.84263972]
[1771750653868,3.94264031,84.953,84.921,3.84263972]
[1771750654060,9.02828944,84.952,84.921,3.84263972]
[1771750654259,3.64664223,84.952,84.921,3.84263972]
[1771750674784,3.64664223,84.952,84.91,2.48350661]
[1771750674785,3.75847174,84.974,84.931,3.96452462]
[1771750675788,3.75847174,84.974,84.932,3.96452462]
[1771750680490,3.75847174,84.974,84.931,10.5999]
[1771750680491,3.75847174,84.974,84.936,3.96452462]
[1771750680682,10.5931,84.987,84.936,3.96452462]
[1771750680683,3.75847174,84.986,84.936,3.96452462]
[1771750680887,3.75847174,84.984,84.936,3.96452462]
[1771750681790,3.75847174,84.982,84.94,2.48350661]
[1771750681993,3.75847174,84.982,84.941,3.96452462]
[1771750696905,2.48350661,84.99,84.941,3.96452462]
[1771750697206,3.93178987,84.989,84.941,3.96452462]
[1771750702003,3.93178987,84.989,84.93,2.48350661]
[1771750702004,3.93178987,84.979,84.931,3.91091894]
[1771750730433,3.93178987,84.979,84.934,3.84022033]
[1771750731735,3.93178987,84.979,84.93,2.48220397]
[1771750731736,3.93178987,84.979,84.936,3.84022033]
[1771750742346,3.73189451,84.977,84.936,3.84022033]
[1771750742547,3.73189451,84.975,84.936,3.84022033]
[1771750742746,3.73189451,84.973,84.936,3.84022033]
[1771750743048,3.73189451,84.971,84.936,3.84022033]
[1771750749052,3.93381886,84.989,84.938,3.78459181]
[1771750749348,3.93381886,84.987,84.938,3.78459181]
[1771750749542,3.93381886,84.985,84.938,3.78459181]
[1771750749746,3.93381886,84.983,84.938,3.78459181]
[1771750749942,3.93381886,84.981,84.938,3.78459181]
[1771750750145,3.93381886,84.979,84.938,3.78459181]
[1771750750344,3.93381886,84.977,84.938,3.78459181]
[1771750750640,3.93381886,84.975,84.939,14.38359181]
[1771750752243,12.91513514,84.974,84.939,14.38359181]
[1771750752447,3.93381886,84.974,84.939,14.38359181]
[1771750753053,3.93381886,84.974,84.939,3.78459181]
[1771750780377,3.92680428,84.972,84.929,3.7612921]
[1771750781673,3.92680428,84.972,84.931,3.7612921]
[1771750798783,3.92680428,84.949,84.891,3.7612921]
[1771750799190,3.92680428,84.939,84.891,3.7612921]
[1771750799385,3.92680428,84.939,84.835,165.0747]
[1771750799386,2.48223888,84.96,84.903,3.7612921]
[1771750799587,3.92680428,84.958,84.903,3.7612921]
[1771750799889,10.98621548,84.976,84.903,3.7612921]
[1771750799890,3.92680428,84.949,84.903,3.7612921]
[1771750800390,3.92680428,84.949,84.911,3.7612921]
[1771750800591,3.92680428,84.969,84.92,2.48351234]
[1771750800785,3.92680428,84.967,84.921,3.7612921]
[1771750805196,3.92680428,84.959,84.921,3.7612921]
[1771750805494,3.92680428,84.959,84.916,10.6018]
[1771750806791,2.48351234,84.95,84.912,3.7612921]
[1771750807097,3.92680428,84.929,84.893,3.7612921]
[1771750811795,3.92680428,84.929,84.885,10.6056]
[1771750811997,3.92680428,84.929,84.886,3.68809423]
[1771750812394,2.48351234,84.92,84.886,3.68809423]
[1771750812599,3.9435928,84.919,84.886,3.68809423]
[1771750813399,3.9435928,84.919,84.87,2.48351234]
[1771750813400,2.48351234,84.94,84.891,3.68809423]
[1771750814692,2.48351234,84.94,84.892,3.74320836]
[1771750815404,3.75760179,84.939,84.892,3.74320836]
[1771750817999,10.98621548,84.981,84.85,2.04956049]
[1771750818000,3.75760179,84.929,84.86,3.74320836]
[1771750818200,3.75760179,84.928,84.891,3.74320836]
[1771750824401,3.75760179,84.939,84.891,3.74320836]
[1771750830016,3.75760179,84.939,84.901,3.74320836]
[1771750848225,3.81333021,84.948,84.904,10.6033]
[1771750848425,3.81333021,84.962,84.911,3.62067167]
[1771750848618,3.81333021,84.962,84.921,3.62067167]
[1771750856344,3.81333021,84.959,84.921,3.62067167]
[1771750860948,3.81333021,84.959,84.923,3.62067167]
[1771750885477,3.92754754,84.97,84.927,3.79152876]
[1771750885676,8.99732411,84.969,84.927,3.79152876]
[1771750885875,8.99732411,84.968,84.927,3.79152876]
[1771750886077,8.99823273,84.967,84.927,3.79152876]
[1771750886279,3.92754754,84.97,84.927,3.79152876]
[1771750886577,8.99833381,84.969,84.927,3.79152876]
[1771750886777,8.99833381,84.968,84.929,3.79152876]
[1771750886975,8.99833381,84.967,84.929,3.79152876]
[1771750887175,8.99950806,84.966,84.929,3.79152876]
[1771750887474,3.92754754,84.969,84.929,3.79152876]
[1771750887777,12.92710837,84.968,84.929,3.79152876]
[1771750887977,12.92710837,84.967,84.929,3.79152876]
[1771750888181,8.99956083,84.966,84.929,3.79152876]
[1771750888374,3.92754754,84.967,84.929,3.79152876]
[1771750888575,12.92856455,84.966,84.929,3.79152876]
[1771750888874,12.92856455,84.965,84.929,3.79152876]
[1771750889079,0.07428166,84.956,84.929,3.79152876]
[1771750901089,2.48306388,84.98,84.94,3.74441217]
[1771750901287,9.01667528,84.979,84.94,3.74441217]
[1771750901489,9.01667528,84.978,84.94,3.74441217]
[1771750901692,9.01667528,84.977,84.94,3.74441217]
[1771750901892,9.01667528,84.976,84.94,3.74441217]
[1771750902194,2.48306388,84.98,84.94,3.74441217]
[1771750902195,9.01667528,84.975,84.94,3.74441217]
[1771750902387,9.01667528,84.974,84.94,3.74441217]
[1771750902587,2.48306388,84.98,84.94,3.74441217]
[1771750902787,9.01429462,84.979,84.942,3.74441217]
[1771750902992,9.01429462,84.978,84.942,3.74441217]
[1771750903292,9.01429462,84.977,84.942,3.74441217]
[1771750903486,9.01429462,84.976,84.942,3.74441217]
[1771750903681,9.01429462,84.975,84.942,3.74441217]
[1771750903884,9.01429462,84.974,84.942,3.74441217]
[1771750904087,1.60531673,84.979,84.942,3.74441217]
[1771750904284,9.01113633,84.978,84.942,3.74441217]
[1771750904494,9.01113633,84.977,84.942,3.74441217]
[1771750904795,9.01113633,84.976,84.942,3.74441217]
[1771750904984,9.01113633,84.975,84.942,3.74441217]
[1771750905188,1.60531673,84.979,84.942,3.74441217]
[1771750905484,9.00999646,84.978,84.942,3.74441217]
[1771750905687,2.48306388,84.97,84.942,3.74441217]
[1771750906298,2.48306388,84.97,84.948,0.07418519]
[1771750908398,2.48306388,84.97,84.948,3.81859736]
[1771750908590,1.60531673,84.979,84.948,3.81859736]
[1771750908793,9.00281254,84.978,84.948,3.81859736]
[1771750908991,9.00281254,84.977,84.948,3.81859736]
[1771750909190,1.60531673,84.979,84.948,3.81859736]
[1771750909399,9.00203224,84.978,84.948,3.81859736]
[1771750909594,9.00203224,84.977,84.948,3.81859736]
[1771750909800,1.60531673,84.979,84.948,3.81859736]
[1771750911799,387.1252747,84.988,84.948,3.81859736]
[1771750912096,9.00008287,84.987,84.952,3.74441217]
[1771750912297,9.00008287,84.987,84.948,0.07418519]
[1771750912298,1.5546604,84.997,84.961,3.74441217]
[1771750912690,1.56328849,85.009,84.961,3.74441217]
[1771750912995,10.56448401,85.008,84.961,3.74441217]
[1771750913195,1.56328849,85.008,84.961,3.74441217]
[1771750913700,1.56328849,85.008,84.976,0.0744331]
[1771750915901,1.56328849,85.008,84.976,3.81884527]
[1771750923107,2.48202701,85.0,84.976,3.81884527]
[1771750923306,1.56328849,85.008,84.976,3.81884527]
[1771750936208,1.52015391,85.02,84.976,3.81884527]
[1771750936512,10.5886,85.022,84.976,3.81884527]
[1771750936513,1.50850346,85.009,84.976,3.81884527]
[1771750937510,1.50850346,84.999,84.976,0.0744331]
[1771750940115,1.50850346,84.999,84.95,2.48202701]
[1771750940116,1.38765623,84.989,84.957,10.5967]
[1771750942213,1.38765623,84.989,84.9,164.9484]
[1771750942214,2.48202701,85.01,84.963,3.63184808]
[1771750942418,1.39938938,85.009,84.963,3.63184808]
[1771750943013,2.48202701,85.0,84.963,3.63184808]
[1771750945821,1.43133395,84.999,84.963,3.63184808]
[1771750946015,1.43133395,84.999,84.958,10.5966]
[1771750948125,0.07429958,84.987,84.958,10.5966]
[1771750949321,0.07429958,84.987,84.958,14.22844808]
[1771750950423,0.07429958,84.987,84.96,10.5962]
[1771750956121,0.07429958,84.987,84.96,14.22804808]
[1771750956523,0.07429958,84.987,84.961,3.63184808]
[1771750959725,10.93287678,85.017,84.961,3.63184808]
[1771750959932,11.52613892,85.067,84.91,62.0]
[1771750959933,3.58448934,85.046,84.992,3.900077]
[1771750960830,3.66175655,85.039,84.992,3.900077]
[1771750961726,3.66175655,85.039,85.001,10.5912]
[1771750962225,3.66175655,85.029,84.992,3.900077]
[1771750962430,3.66175655,85.019,84.971,3.23711702]
[1771750963431,3.66175655,85.019,84.976,3.23711702]
[1771750963725,2.48202701,85.01,84.976,3.23711702]
[1771750963926,2.48202701,85.01,84.94,22.00541797]
[1771750963927,3.66175655,85.009,84.966,3.23711702]
[1771750965030,3.66175655,84.999,84.954,3.22902974]
[1771750965231,3.66175655,84.999,84.961,3.22902974]
[1771750965533,2.48202701,85.03,84.975,3.22902974]
[1771750965827,3.66175655,85.029,84.975,3.22902974]
[1771750966728,3.66175655,85.029,84.963,10.5959]
[1771750966729,3.66175655,85.029,84.981,3.30516814]
[1771750969133,3.66175655,85.027,84.981,3.30516814]
[1771750969333,10.5879,85.028,84.981,3.30516814]
[1771750969334,3.66175655,85.019,84.981,3.30516814]
[1771750970332,3.66175655,85.009,84.971,3.30594206]
[1771750972237,3.66175655,85.006,84.971,3.30594206]
[1771750974934,10.5908,85.005,84.971,3.30594206]
[1771750976838,10.5895,85.015,84.971,3.30594206]
[1771750978650,14.24985655,85.027,84.98,2.4808084]
[1771750978944,14.24985655,85.027,84.981,3.48894923]
[1771750979146,3.66175655,85.026,84.981,3.48894923]
[1771750980643,10.5883,85.025,84.981,3.48894923]
[1771750980843,3.66175655,85.024,84.981,3.48894923]
[1771750985646,3.66175655,85.024,84.97,13.0758084]
[1771750985647,3.66175655,85.019,84.97,3.42662666]
[1771750990754,3.66175655,85.019,84.971,3.51173943]
[1771750993457,3.66175655,85.019,84.987,0.07432564]
[1771750993657,10.5891,85.018,84.987,0.07432564]
[1771750993957,3.67712207,84.999,84.961,3.57616515]
[1771750994752,3.67712207,84.989,84.951,3.57428515]
[1771751037187,3.84096188,84.986,84.941,3.57743748]
[1771751038684,14.43526188,84.977,84.941,3.57743748]
[1771751041086,3.84096188,84.976,84.941,3.57743748]
[1771751043491,10.5946,84.975,84.941,3.57743748]
[1771751043786,10.96366407,85.017,84.941,3.57743748]
[1771751043787,10.5933,84.985,84.941,3.57743748]
[1771751043992,3.84096188,84.993,84.937,10.5992]
[1771751043993,3.84096188,84.993,84.951,3.52361502]
[1771751044886,10.5924,84.992,84.951,3.52361502]
[1771751045489,14.43336188,84.992,84.951,3.52361502]
[1771751051594,14.43336188,84.992,84.961,3.60769604]
[1771751051595,10.5924,84.992,84.961,3.60769604]
[1771751051892,3.66274885,85.002,84.961,3.60769604]
[1771751052291,2.48145076,85.02,84.921,29.36986648]
[1771751052292,3.66274885,85.019,84.971,3.60769604]
[1771751052494,2.48145076,85.02,84.971,3.60769604]
[1771751052495,3.66274885,85.017,84.971,3.60769604]
[1771751052798,10.5913,85.001,84.971,3.60769604]
[1771751053203,3.66274885,85.015,84.981,3.60169035]
[1771751055292,3.866449,85.025,84.991,3.59842954]
[1771751056605,10.5876,85.031,84.991,3.59842954]
[1771751056806,3.866449,85.034,84.991,3.59842954]
[1771751061801,0.07441612,85.021,84.991,3.59842954]
[1771751080517,3.92205523,85.035,84.991,3.59842954]
[1771751085316,3.92205523,85.035,84.993,3.55254412]
[1771751096739,10.585,85.052,84.995,3.54081793]
[1771751096940,3.92205523,85.049,85.001,3.54081793]
[1771751097133,3.92205523,85.047,85.001,3.54081793]
[1771751097440,3.92205523,85.045,85.001,3.54081793]
[1771751097635,3.92205523,85.043,85.001,3.54081793]
[1771751097840,3.92205523,85.039,85.002,3.54081793]
[1771751098036,3.92205523,85.029,84.981,3.54081793]
[1771751098840,3.92205523,85.019,84.981,3.54081793]
[1771751099739,3.92205523,85.019,84.983,3.52609197]
[1771751112253,3.72416975,85.039,84.991,3.48692445]
[1771751112453,3.72416975,85.037,84.991,3.48692445]
[1771751112748,2.47868977,85.03,84.989,10.5927]
[1771751112954,3.72416975,85.028,84.989,10.5927]
[1771751113156,3.93601621,85.026,84.989,10.5927]
[1771751113348,3.93601621,85.024,84.989,10.5927]
[1771751114051,3.93601621,85.019,84.979,10.5939]
[1771751119855,3.93601621,85.019,84.979,14.11288907]
[1771751120954,3.93601621,85.019,84.98,3.52008008]
[1771751126161,3.93601621,85.019,84.991,0.07429416]
[1771751192522,3.93601621,85.019,84.98,5.99965198]
[1771751192914,3.72148662,85.017,84.98,5.99965198]
[1771751194226,3.72148662,85.017,84.98,3.52008008]
[1771751194422,3.72148662,85.015,84.98,3.52008008]
[1771751194624,3.72148662,85.013,84.98,3.52008008]
[1771751195324,3.72148662,85.013,84.98,5.99965198]
[1771751196222,0.07429192,85.005,84.981,3.56280743]
[1771751208534,0.07429192,85.005,84.979,10.5939]
[1771751212332,3.6269438,85.004,84.971,3.56868833]
[1771751212635,3.6269438,84.999,84.95,2.4795719]
[1771751213833,3.6269438,84.999,84.957,10.5966]
[1771751214032,0.07414237,84.983,84.957,10.5966]
[1771751214729,8.617e-05,84.984,84.957,10.5966]
[1771751218239,8.617e-05,84.984,84.96,2.4795719]
[1771751220036,8.617e-05,84.984,84.96,2.48077913]
[1771751226143,8.617e-05,84.984,84.97,2.48077913]
[1771751229042,8.617e-05,84.984,84.96,2.48077913]
[1771751229434,3.6726384,85.002,84.957,3.67062175]
[1771751229637,3.6726384,85.002,84.96,2.48077913]
[1771751230252,3.6726384,85.002,84.96,6.46723418]
[1771751230549,3.6726384,85.002,84.961,3.98645505]
[1771751230841,2.48077913,85.02,84.961,3.98645505]
[1771751230842,3.6726384,84.999,84.961,3.98645505]
[1771751233351,3.6726384,84.999,84.97,2.48077913]
[1771751234147,3.6726384,84.999,84.976,0.07449635]
[1771751252575,3.6726384,84.999,84.961,3.98645505]
[1771751256375,3.86984192,84.997,84.961,3.98645505]
[1771751257174,8.9326685,84.996,84.961,3.98645505]
[1771751257378,12.80251042,84.995,84.961,3.98645505]
[1771751257677,8.9326685,84.994,84.961,3.98645505]
[1771751257878,3.86984192,84.995,84.961,3.98645505]
[1771751258072,12.85758394,84.994,84.961,3.98645505]
[1771751258270,3.92507803,84.994,84.961,3.98645505]
[1771751259679,0.07453034,84.986,84.961,3.98645505]
[1771751296319,0.07453034,84.986,84.94,2.4807272]
[1771751296320,3.69378689,84.983,84.94,2.4807272]
[1771751296524,3.69378689,84.981,84.94,2.4807272]
[1771751296823,2.4807272,84.99,84.94,2.4807272]
[1771751296824,3.69378689,84.979,84.94,2.4807272]
[1771751297019,3.69378689,84.979,84.94,6.25401251]
[1771751297420,3.69378689,84.979,84.941,3.77328531]
[1771751297722,3.69378689,84.977,84.941,3.77328531]
[1771751304431,3.69378689,84.987,84.951,3.77328531]
[1771751304730,3.69378689,84.985,84.951,3.77328531]
[1771751304922,3.69378689,84.995,84.951,3.77328531]
[1771751305121,12.62945313,84.994,84.951,3.77328531]
[1771751305326,12.62945313,84.993,84.951,3.77328531]
[1771751305532,12.62945313,84.992,84.951,3.77328531]
[1771751305734,10.5933,84.985,84.951,3.77328531]
[1771751308437,0.07445414,84.976,84.951,3.77328531]
[1771751328154,3.87729336,84.975,84.941,3.93494366]
[1771751350977,0.07445414,84.976,84.951,3.75740691]
[1771751356184,0.07445414,84.976,84.961,3.8284546]
[1771751360480,357.02155781,84.989,84.961,3.8284546]
[1771751360783,235.87494595,85.0,84.961,3.8284546]
[1771751360984,8.98854332,84.999,84.961,3.8284546]
[1771751361182,235.87494595,85.0,84.961,3.8284546]
[1771751361183,3.96084424,84.996,84.961,3.8284546]
[1771751361381,8.98854332,84.995,84.961,3.8284546]
[1771751361582,3.96084424,84.996,84.961,3.8284546]
[1771751361784,8.98602131,84.995,84.961,3.8284546]
[1771751361979,3.96084424,84.996,84.961,3.8284546]
[1771751371987,225.28344595,85.0,84.961,3.8284546]
[1771751372186,8.97663539,84.999,84.961,3.8284546]
[1771751372396,225.28344595,85.0,84.961,3.8284546]
[1771751372589,12.93704703,84.999,84.961,3.8284546]
[1771751372898,225.28344595,85.0,84.961,3.8284546]
[1771751373898,225.28344595,85.0,84.965,3.8284546]
[1771751376197,10.99634685,85.02,84.921,246.638708]
[1771751376198,3.96084424,85.024,84.98,2.48211481]
[1771751376398,8.94256058,85.023,84.98,2.48211481]
[1771751376598,3.96084424,85.024,84.98,2.48211481]
[1771751378098,3.96084424,85.024,84.975,10.5944]
[1771751378099,2.48211481,85.02,84.975,10.5944]
[1771751378302,40.60333495,85.009,84.965,10.5956]
[1771751379499,40.60333495,85.009,84.976,10.5943]
[1771751381401,40.73295674,85.019,84.976,10.5943]
[1771751388403,40.73295674,85.019,84.985,10.5932]
[1771751391108,40.71621135,85.029,84.985,10.5932]
[1771751395418,40.71621135,85.029,84.994,10.5921]
[1771751400216,3.42691135,85.029,85.002,10.591]
[1771751400417,1.135e-05,85.029,85.002,10.591]
[1771751400613,2.48211481,85.04,85.002,10.591]
[1771751402312,22.85979263,85.04,85.002,10.591]
[1771751402516,22.85979263,85.04,84.992,10.5922]
[1771751403918,20.32716619,85.029,84.992,10.5922]
[1771751422946,20.32716619,85.029,85.002,0.07415436]
[1771751429948,20.32716619,85.029,84.957,0.02]
[1771751429949,20.32716619,85.029,84.982,10.5935]
[1771751433148,2.47927965,85.02,84.982,10.5935]
[1771751433356,20.22978292,85.009,84.974,10.5946]
[1771751473878,0.07423526,85.0,84.974,10.5946]
[1771751479594,0.07423526,85.0,84.98,2.47999414]
[1771751479895,20.05855393,85.01,84.98,2.47999414]
[1771751480996,13.06649414,85.04,84.99,2.47999414]
[1771751481196,8.94904152,85.039,84.99,2.47999414]
[1771751481490,8.94904152,85.038,84.99,2.47999414]
[1771751481697,20.13159927,85.036,84.99,2.47999414]
[1771751481897,20.13159927,85.034,84.99,2.47999414]
[1771751482093,20.13159927,85.032,84.99,2.47999414]
[1771751483202,20.13110014,85.03,84.983,10.5935]
[1771751484797,20.1444783,85.019,84.974,10.5946]
[1771751484997,2.47999414,85.02,84.974,10.5946]
[1771751484998,20.1444783,85.017,84.974,10.5946]
[1771751486510,20.13985587,85.009,84.961,10.5961]
[1771751486702,20.13985587,85.007,84.961,10.5961]
[1771751502217,20.12595803,84.999,84.961,10.5961]
[1771751509724,20.12595803,84.999,84.972,0.0741523]
[1771751562971,20.12595803,84.999,84.961,10.5961]
[1771751564770,14.61185852,85.03,84.941,410.78145853]
[1771751564771,20.05345049,84.989,84.948,10.5978]
[1771751564968,2.48063715,84.99,84.948,10.5978]
[1771751564969,20.05345049,84.987,84.948,10.5978]
[1771751565165,20.05345049,84.985,84.948,10.5978]
[1771751570883,20.06330007,84.974,84.948,10.5978]
[1771751572984,20.06330007,84.974,84.941,410.78145853]
[1771751580189,20.14141429,84.975,84.941,410.78145853]
[1771751600704,20.14141429,84.975,84.94,2.48183408]
[1771751602406,20.14141429,84.975,84.943,10.5984]
[1771751602707,0.07423199,84.975,84.943,10.5984]
[1771751602906,0.07423199,84.975,84.95,2.48183408]
[1771751603904,0.07423199,84.975,84.943,10.5984]
[1771751611119,0.07423199,84.975,84.951,10.5974]
[1771751629724,20.07978732,84.975,84.942,10.5985]
[1771751641346,20.07978732,84.975,84.949,10.5976]
[1771751642540,20.07978732,84.975,84.925,21.98531665]
[1771751642745,19.96300183,84.969,84.91,2.48183408]